fUST/lending_fUST_20260327
["ID","MTS","AMOUNT","RATE_DAILY","PERIOD"]
[418931135,1774570232873,-500.0,7.699e-05,2]
[418931137,1774570232882,-500.0,7.699e-05,2]
[418931139,1774570232892,-499.99999999,7.699e-05,2]
[418931141,1774570232902,-192.47203115,7.699e-05,2]
[418931143,1774570232912,-500.0,7.699e-05,2]
[418931145,1774570232921,-500.0,7.699e-05,2]
[418931146,1774570232931,-506.77386902,7.699e-05,2]
[418931148,1774570232940,-500.0,7.699e-05,2]
[418931151,1774570232950,-500.0,7.699e-05,2]
[418931152,1774570232960,-500.0,7.699e-05,2]
[418931154,1774570232970,-353.21126525,7.699e-05,2]
[418931156,1774570232979,-105311.54373846,7.7e-05,2]
[418931158,1774570232989,-1000.0,7.7e-05,2]
[418931160,1774570232998,-205.0,7.7e-05,5]
[418931162,1774570233008,-300.0,7.751e-05,2]
[418931169,1774570233066,-300.0,7.751e-05,2]
[418931171,1774570233076,-300.0,7.751e-05,2]
[418931173,1774570233085,-300.0,7.751e-05,2]
[418931175,1774570233096,-300.0,7.751e-05,2]
[418931177,1774570233105,-300.0,7.751e-05,2]
[418931179,1774570233115,-300.0,7.751e-05,2]
[418931181,1774570233124,-300.0,7.751e-05,2]
[418931183,1774570233134,-300.0,7.751e-05,2]
[418931185,1774570233143,-300.0,7.751e-05,2]
[418931187,1774570233154,-300.0,7.751e-05,2]
[418931189,1774570233163,-38.27346981,7.751e-05,2]
[418931322,1774570243932,-261.72653019,7.751e-05,2]
[418931323,1774570243943,-300.0,7.751e-05,2]
[418931325,1774570244003,-300.0,7.751e-05,2]
[418931326,1774570244015,-300.0,7.751e-05,2]
[418931327,1774570244025,-600.0,7.751e-05,2]
[418931328,1774570244035,-500.0,7.751e-05,2]
[418931329,1774570244045,-574.34824547,7.8e-05,2]
[418931333,1774570244148,-425.65175453,7.8e-05,2]
[418931334,1774570244158,-1000.0,8e-05,2]
[418931335,1774570244167,-537.6845,8.187e-05,2]
[418931336,1774570244176,-2150.738,8.187e-05,2]
[418931337,1774570244185,-1680.0,8.192e-05,2]
[418931338,1774570244194,-500.0,8.219e-05,2]
[418931339,1774570244203,-531.86876645,8.219e-05,2]
[418931340,1774570244212,-500.0,8.219e-05,2]
[418931342,1774570244223,-500.0,8.221e-05,2]
[418931344,1774570244232,-557.5788265,8.242e-05,2]
[418931346,1774570244243,-300.0,8.283e-05,2]
[418931347,1774570244252,-578.20924308,8.297e-05,2]
[418931348,1774570244262,-1000.0,8.3e-05,2]
[418931349,1774570244271,-497.55254739,8.305e-05,2]
[418931350,1774570244280,-537.6845,8.305e-05,2]
[418931351,1774570244289,-3245.10681908,8.31e-05,2]
[418931352,1774570244300,-9541.57937433,8.31e-05,2]
[418931359,1774570244711,-2377.61113902,8.31e-05,2]
[418931540,1774570246579,-24368.94900374,8.31e-05,2]
[418931546,1774570246628,-1739.089,8.31e-05,2]
[418931666,1774570258282,151.0,7.7e-05,120]
[418931699,1774571432539,-509.0,6.255e-05,2]
[418931701,1774571432549,-788.01723482,6.255e-05,2]
[418931708,1774571432617,-178.52157177,6.255e-05,2]
[418931711,1774571432627,-150.02449865,7.5e-05,2]
[418931714,1774571432637,-150.02778902,7.5e-05,2]
[418931717,1774571432646,-150.02944197,7.5e-05,2]
[418931720,1774571432655,-200.267215,7.685e-05,2]
[418931723,1774571432664,-310.07481115,7.7e-05,2]
[418931726,1774571432673,-300.0,7.751e-05,2]
[418931730,1774571432683,-302.10567191,7.835e-05,2]
[418931733,1774571432692,-990.0,7.882e-05,2]
[418931735,1774571432701,-300.0,7.883e-05,2]
[418931737,1774571432710,-300.0,7.883e-05,2]
[418931739,1774571432719,-300.0,7.883e-05,2]
[418931740,1774571432729,-300.0,7.883e-05,2]
[418931742,1774571432738,-300.0,7.883e-05,2]
[418931744,1774571432748,-2450.09950809,7.884e-05,2]
[418931745,1774571432767,-732.63128071,7.884e-05,2]
[418931746,1774571432776,-2234.27871929,7.884e-05,2]
[418931779,1774571438656,-527.18973794,7.884e-05,2]
[418931790,1774571438751,-8954.20005747,7.884e-05,2]
[418931792,1774571438760,-501.5741801,8.054e-05,2]
[418931794,1774571438769,-2150.738,8.054e-05,2]
[418931796,1774571438778,-500.0,8.193e-05,2]
[418931799,1774571438787,-500.0,8.193e-05,2]
[418931802,1774571438796,-500.0,8.193e-05,2]
[418931804,1774571438805,-500.0,8.193e-05,2]
[418931806,1774571438814,-263.53266897,8.193e-05,2]
[418931808,1774571438823,-500.0,8.193e-05,2]
[418931810,1774571438832,-234.23556671,8.193e-05,2]
[418931812,1774571438841,-500.0,8.193e-05,2]
[418931814,1774571438851,-270.93733974,8.193e-05,2]
[418931816,1774571438860,-500.47750466,8.193e-05,2]
[418931818,1774571438869,-500.56675121,8.193e-05,2]
[418931820,1774571438878,-500.0,8.193e-05,2]
[418931822,1774571438887,-500.49925032,8.193e-05,2]
[418931824,1774571438896,-24.91712424,8.193e-05,2]
[418931826,1774571438907,-175.08287576,8.193e-05,2]
[418931828,1774571438916,-500.0,8.193e-05,2]
[418931830,1774571438925,-500.0,8.193e-05,2]
[418931832,1774571438935,-331.81395679,8.193e-05,2]
[418931835,1774571438946,-1861.72665712,8.21e-05,2]
[418932063,1774571441369,-11599.12067499,8.21e-05,2]
[418932122,1774571444068,-499.48143251,8.21e-05,2]
[418932123,1774571444079,-806.99127554,8.21e-05,2]
[418932141,1774571446755,-3783.66589741,8.21e-05,2]
[418932142,1774571446781,-1992.05983524,8.21e-05,2]
[418932143,1774571447030,-95868.43507624,8.21e-05,2]
[418932144,1774571447053,-4717.07435341,8.21e-05,2]
[418932152,1774572270611,165.543534,7.016e-05,120]
[418932155,1774572570310,10.34577,1.2e-05,2]
[418932156,1774572570341,147.65423,1.2e-05,2]
[418932157,1774572581213,158.31816012,1.2e-05,3]
[418932171,1774572631711,-500.0,5.543e-05,2]
[418932173,1774572631720,-500.0,5.543e-05,2]
[418932175,1774572631730,-1208.94986797,5.587e-05,2]
[418932176,1774572631740,-2689.11225049,5.687e-05,2]
[418932177,1774572631749,-2982.97499227,5.787e-05,2]
[418932178,1774572631758,-300.0,5.886e-05,2]
[418932179,1774572631767,-715.36288927,5.886e-05,2]
[418932180,1774572631778,-415.5682228,5.886e-05,2]
[418932199,1774572637968,-69.06888793,5.886e-05,2]
[418932202,1774572637986,-930.93111207,5.887e-05,2]
[418932214,1774572638095,-800.0,5.887e-05,2]
[418932280,1774572642601,-1277.8827533,5.887e-05,2]
[418932281,1774572642610,-6302.1383742,6.385e-05,2]
[418932282,1774572642620,-165.543534,7.016e-05,2]
[418932283,1774572642629,-165.543534,7.016e-05,61]
[418932284,1774572642638,-344.91836141,7.412e-05,2]
[418932285,1774572642647,-185.99988391,7.85e-05,2]
[418932286,1774572642656,-639.547,7.85e-05,2]
[418932287,1774572642665,-500.0,7.893e-05,2]
[418932288,1774572642674,-500.0,7.893e-05,2]
[418932289,1774572642683,-331.81395679,7.893e-05,2]
[418932290,1774572642692,-175.08287576,7.893e-05,2]
[418932291,1774572642702,-500.0,7.895e-05,2]
[418932292,1774572642710,-372.57902947,7.909e-05,2]
[418932293,1774572642720,-6450.68011761,7.91e-05,2]
[418932294,1774572642728,-15820.70404749,7.91e-05,2]
[418932351,1774572643294,-336.68326718,7.91e-05,2]
[418932367,1774572646009,-12016.39653973,7.91e-05,2]
[418932368,1774572646020,-110020.80367868,7.91e-05,2]
[418932369,1774572646051,-351891.80227566,7.91e-05,2]
[418932400,1774573831919,-910.96922352,6.01e-05,2]
[418932402,1774573831929,-506.0,6.01e-05,2]
[418932403,1774573831938,-1200.0,6.734e-05,2]
[418932405,1774573831948,-300.0,6.735e-05,2]
[418932407,1774573831957,-300.0,6.735e-05,2]
[418932409,1774573831967,-300.0,6.735e-05,2]
[418932411,1774573831976,-24092.4091988,6.736e-05,2]
[418932413,1774573831985,-348.24485558,7.394e-05,2]
[418932415,1774573831995,-383.728,7.654e-05,2]
[418932417,1774573832004,-413.97669941,7.692e-05,2]
[418932419,1774573832013,-154.43027576,7.693e-05,2]
[418932420,1774573832022,-642.19999928,7.693e-05,2]
[418932422,1774573832031,-500.0,7.693e-05,2]
[418932424,1774573832039,-500.0,7.693e-05,2]
[418932426,1774573832048,-500.31540802,7.693e-05,2]
[418932428,1774573832058,-500.0,7.693e-05,2]
[418932430,1774573832067,-500.0,7.693e-05,2]
[418932432,1774573832076,-500.0,7.693e-05,2]
[418932434,1774573832085,-500.0,7.693e-05,2]
[418932435,1774573832095,-500.0,7.693e-05,2]
[418932437,1774573832104,-500.0,7.693e-05,2]
[418932439,1774573832113,-500.0,7.693e-05,2]
[418932441,1774573832122,-668.24151018,7.7e-05,2]
[418932443,1774573832131,-18163.20346237,7.71e-05,2]
[418932445,1774573832143,-611.63977585,7.71e-05,2]
[418932487,1774573838184,-551.83781244,7.71e-05,2]
[418932523,1774573843679,-16645.38300021,7.71e-05,2]
[418932524,1774573843738,-256.2,7.71e-05,2]
[418932527,1774573846206,-1828.72787126,7.71e-05,2]
[418932528,1774573846483,-8472.77876178,7.71e-05,2]
[418932529,1774573846494,-9262.33929079,7.71e-05,2]
[418932530,1774573846505,-837.18800462,7.71e-05,2]
[418932562,1774575032377,-507.0,6.044e-05,2]
[418932564,1774575032386,-273.3426452,6.092e-05,2]
[418932566,1774575032396,-500.0,6.131e-05,2]
[418932568,1774575032405,-300.0,6.518e-05,2]
[418932570,1774575032414,-300.0,6.518e-05,2]
[418932572,1774575032423,-1200.0,6.518e-05,2]
[418932574,1774575032432,-300.0,6.518e-05,2]
[418932576,1774575032441,-300.0,6.519e-05,2]
[418932578,1774575032450,-300.0,6.519e-05,2]
[418932580,1774575032460,-300.0,6.519e-05,2]
[418932582,1774575032469,-300.0,6.519e-05,2]
[418932584,1774575032478,-300.0,6.519e-05,2]
[418932586,1774575032487,-300.0,6.519e-05,2]
[418932588,1774575032496,-300.0,6.519e-05,2]
[418932590,1774575032505,-300.0,6.519e-05,2]
[418932592,1774575032514,-300.0,6.519e-05,2]
[418932594,1774575032523,-300.0,6.519e-05,2]
[418932596,1774575032532,-300.0,6.519e-05,2]
[418932598,1774575032541,-300.0,6.519e-05,2]
[418932600,1774575032550,-300.0,6.519e-05,2]
[418932602,1774575032559,-300.0,6.519e-05,2]
[418932604,1774575032568,-300.0,6.519e-05,2]
[418932606,1774575032578,-500.0,6.719e-05,2]
[418932607,1774575032587,-160.693905,7.055e-05,2]
[418932609,1774575032595,-420.0,7.17e-05,2]
[418932610,1774575032605,-1601.69223052,7.17e-05,2]
[418932619,1774575038656,-78.30776948,7.17e-05,2]
[418932620,1774575038665,-237.04327508,7.336e-05,2]
[418932621,1774575038674,-409.191,7.36e-05,2]
[418932622,1774575038683,-235.17298046,7.393e-05,2]
[418932679,1774575046479,-1607.9930911,6.482e-05,2]
[418932681,1774575046489,-264.82701954,7.393e-05,2]
[418932683,1774575046498,-500.0,7.393e-05,2]
[418932685,1774575046507,-500.0,7.393e-05,2]
[418932687,1774575046516,-283749.17050351,7.41e-05,2]
[418932701,1774575046884,-1121.0,7.41e-05,2]
[418932825,1774575062155,-1143.59,7.41e-05,2]
[418932826,1774575116974,151.0,7.7e-05,120]
[418932828,1774575156601,151.0,7.7e-05,120]
[418932833,1774575444289,166.246779,5.532e-05,120]
[418932854,1774576232377,-500.75183339,5.232e-05,2]
[418932856,1774576232387,-1275.11496585,5.296e-05,2]
[418932858,1774576232396,-2826.09353842,5.396e-05,2]
[418932860,1774576232405,-2876.4724843,5.496e-05,2]
[418932861,1774576232431,-261.12358003,5.496e-05,2]
[418932862,1774576232442,-1200.0,5.528e-05,2]
[418932863,1774576232452,-166.246779,5.532e-05,2]
[418932864,1774576232461,-222.29712535,5.595e-05,2]
[418932865,1774576232473,-77.70287465,5.595e-05,2]
[418932866,1774576232483,-300.0,5.595e-05,2]
[418932867,1774576232494,-89.82355157,5.595e-05,2]
[418932874,1774576238515,-210.17644843,5.595e-05,2]
[418932875,1774576238524,-300.0,5.595e-05,2]
[418932876,1774576238534,-2629.80173616,5.596e-05,2]
[418932877,1774576238621,-552.51568969,5.596e-05,2]
[418932878,1774576238631,-3449.09859031,5.696e-05,2]
[418932879,1774576238641,-300.0,5.945e-05,2]
[418932880,1774576238651,-300.0,5.945e-05,2]
[418932881,1774576238661,-300.0,5.945e-05,2]
[418932882,1774576238671,-300.0,5.945e-05,2]
[418932883,1774576238680,-300.0,5.945e-05,2]
[418932884,1774576238691,-300.0,5.945e-05,2]
[418932885,1774576238700,-300.0,5.945e-05,2]
[418932886,1774576238709,-300.0,5.945e-05,2]
[418932887,1774576238719,-300.0,5.945e-05,2]
[418932888,1774576238727,-300.0,5.945e-05,2]
[418932889,1774576238738,-300.0,5.945e-05,2]
[418932890,1774576238748,-300.0,5.945e-05,2]
[418932891,1774576238757,-300.0,5.945e-05,2]
[418932892,1774576238766,-300.0,5.945e-05,2]
[418932893,1774576238775,-300.0,5.945e-05,2]
[418932894,1774576238785,-152.1123441,5.95e-05,2]
[418932895,1774576238794,-500.0,5.95e-05,2]
[418932896,1774576238803,-500.0,5.976e-05,2]
[418932897,1774576238812,-500.0,6.053e-05,2]
[418932898,1774576238822,-420.0,6.155e-05,2]
[418932899,1774576238831,-501.43765032,6.498e-05,2]
[418932900,1774576238841,-500.0,6.769e-05,2]
[418932901,1774576238850,-397.55057319,7.051e-05,2]
[418932902,1774576238860,-552.52954965,7.193e-05,2]
[418932903,1774576238870,-500.0,7.193e-05,2]
[418932904,1774576238879,-500.0,7.193e-05,2]
[418932905,1774576238888,-500.0,7.193e-05,2]
[418932906,1774576238897,-500.48733853,7.193e-05,2]
[418932907,1774576238906,-501.01091228,7.193e-05,2]
[418932908,1774576238915,-331.85450365,7.193e-05,2]
[418932909,1774576238924,-175.79352645,7.193e-05,2]
[418932910,1774576238933,-500.0,7.193e-05,2]
[418932911,1774576238943,-390.57856185,7.209e-05,2]
[418932912,1774576238952,-20751.63147105,7.21e-05,2]
[418932913,1774576238963,-2118.66704675,7.21e-05,2]
[418932930,1774576246642,-2939.81531074,7.21e-05,2]
[418932931,1774576246905,-1901.41835745,7.21e-05,2]
[418932932,1774576271067,163.6,7.4e-05,120]
[418932946,1774577432567,-501.0,5.582e-05,2]
[418932948,1774577432576,-2418.6082134,5.582e-05,2]
[418932949,1774577432586,-160.693905,6.081e-05,2]
[418932950,1774577432596,-1292.97667667,6.118e-05,2]
[418932951,1774577432605,-2864.31516741,6.218e-05,2]
[418932952,1774577432614,-283.79396612,6.314e-05,2]
[418932953,1774577432629,-916.20603388,6.314e-05,2]
[418932954,1774577432639,-300.0,6.315e-05,2]
[418932955,1774577432649,-300.0,6.317e-05,2]
[418932956,1774577432659,-300.0,6.317e-05,2]
[418932957,1774577432669,-3180.62085162,6.318e-05,2]
[418932958,1774577432679,-3229.45005594,6.418e-05,2]
[418932959,1774577432689,-160.693905,6.507e-05,2]
[418932960,1774577432698,-3496.92653592,6.518e-05,2]
[418932961,1774577432707,-300.0,6.545e-05,2]
[418932962,1774577432717,-300.0,6.545e-05,2]
[418932963,1774577432726,-300.0,6.545e-05,2]
[418932964,1774577432735,-300.0,6.545e-05,2]
[418932965,1774577432745,-300.0,6.545e-05,2]
[418932966,1774577432754,-300.0,6.545e-05,2]
[418932967,1774577432764,-300.0,6.545e-05,2]
[418932968,1774577432773,-300.0,6.545e-05,2]
[418932969,1774577432783,-300.0,6.545e-05,2]
[418932970,1774577432792,-80.9953777,6.545e-05,2]
[418932971,1774577432804,-219.0046223,6.545e-05,2]
[418932972,1774577432815,-168.87982626,6.545e-05,2]
[418932978,1774577438843,-131.12017374,6.545e-05,2]
[418932979,1774577438853,-300.0,6.545e-05,2]
[418932980,1774577438916,-300.0,6.545e-05,2]
[418932981,1774577438926,-300.0,6.545e-05,2]
[418932982,1774577438935,-300.0,6.545e-05,2]
[418932983,1774577438944,-600.0,6.675e-05,2]
[418932985,1774577438953,-500.0,6.893e-05,2]
[418932986,1774577438962,-500.0,6.893e-05,2]
[418932988,1774577438972,-500.0,6.893e-05,2]
[418932990,1774577438981,-183.89153751,6.9e-05,2]
[418932991,1774577438991,-252.17986109,6.9e-05,2]
[418932992,1774577439000,-240.0571479,6.9e-05,2]
[418932993,1774577439009,-258.49303312,6.9e-05,2]
[418932994,1774577439018,-151.59149641,6.9e-05,2]
[418932995,1774577439027,-154.24560662,6.9e-05,2]
[418932996,1774577439036,-155.10054459,6.9e-05,2]
[418932997,1774577439046,-8450.83280245,6.91e-05,2]
[418932998,1774577439201,-872.06365179,6.91e-05,2]
[418933006,1774577441634,-1202.22657072,6.91e-05,2]
[418933007,1774577441645,-396.27900709,6.91e-05,2]
[418933015,1774577444149,-3490.18241181,6.91e-05,2]
[418933016,1774577444161,-336.33341679,6.91e-05,2]
[418933017,1774577444362,-8378.62888832,6.91e-05,2]
[418933024,1774577446885,-1997.7813721,6.91e-05,2]
[418933028,1774578397163,-1000.0,5.824e-05,2]
[418933029,1774578398116,-1000.0,5.824e-05,2]
[418933030,1774578398426,-1000.0,5.824e-05,2]
[418933031,1774578398762,-1000.0,5.824e-05,2]
[418933032,1774578399103,-1000.0,5.824e-05,2]
[418933033,1774578399414,-1000.0,5.824e-05,2]
[418933034,1774578399751,-302.1383742,5.824e-05,2]
[418933035,1774578399772,-500.0,6.329e-05,2]
[418933036,1774578399794,-197.8616258,6.483e-05,2]
[418933037,1774578400062,-302.1383742,6.483e-05,2]
[418933038,1774578400084,-300.0,6.592e-05,2]
[418933039,1774578400105,-397.8616258,6.593e-05,2]
[418933040,1774578400391,-93.90606116,6.593e-05,2]
[418933041,1774578400469,-500.79617173,6.593e-05,2]
[418933042,1774578400490,-405.29776711,6.593e-05,2]
[418933043,1774578400705,-94.70223289,6.593e-05,2]
[418933044,1774578400725,-501.63445163,6.593e-05,2]
[418933045,1774578400749,-403.66331548,6.608e-05,2]
[418933046,1774578401061,-796.33668452,6.608e-05,2]
[418933047,1774578401082,-203.66331548,6.609e-05,2]
[418933048,1774578401383,-96.33668452,6.609e-05,2]
[418933049,1774578401403,-300.0,6.609e-05,2]
[418933050,1774578401424,-300.0,6.609e-05,2]
[418933051,1774578401447,-303.66331548,6.61e-05,2]
[418933052,1774578401710,-1000.0,6.61e-05,2]
[418933053,1774578402022,-1000.0,6.61e-05,2]
[418933054,1774578402365,-1000.0,6.61e-05,2]
[418933055,1774578402702,-1000.0,6.61e-05,2]
[418933056,1774578403040,-1000.0,6.61e-05,2]
[418933057,1774578403607,-1000.0,6.61e-05,2]
[418933058,1774578403905,-1000.0,6.61e-05,2]
[418933059,1774578404234,-1000.0,6.61e-05,2]
[418933060,1774578404580,-1000.0,6.61e-05,2]
[418933061,1774578404932,-1000.0,6.61e-05,2]
[418933062,1774578405245,-1000.0,6.61e-05,2]
[418933063,1774578405831,-1000.0,6.61e-05,2]
[418933064,1774578406089,-1000.0,6.61e-05,2]
[418933065,1774578406536,-1000.0,6.61e-05,2]
[418933066,1774578406955,-1000.0,6.61e-05,2]
[418933067,1774578409086,-1000.0,6.61e-05,2]
[418933068,1774578409640,-1000.0,6.61e-05,2]
[418933069,1774578410506,-1000.0,6.61e-05,2]
[418933070,1774578411562,-1000.0,6.61e-05,2]
[418933071,1774578412374,-1000.0,6.61e-05,2]
[418933072,1774578429260,-1000.0,6.61e-05,2]
[418933073,1774578430707,-1000.0,6.514e-05,2]
[418933074,1774578431127,-353.0974235,6.514e-05,2]
[418933075,1774578431153,-646.9025765,6.61e-05,2]
[418933076,1774578431556,-1000.0,6.61e-05,2]
[418933077,1774578432011,-1000.0,6.61e-05,2]
[418933078,1774578432464,-1000.0,6.61e-05,2]
[418933079,1774578432775,-1000.0,6.61e-05,2]
[418933080,1774578434175,-1000.0,6.61e-05,2]
[418933081,1774578435064,-1000.0,6.61e-05,2]
[418933082,1774578435828,-1000.0,6.61e-05,2]
[418933083,1774578436709,-1000.0,6.61e-05,2]
[418933084,1774578440957,-250.0,6.61e-05,2]
[418933097,1774578631883,-300.0,6.509e-05,2]
[418933098,1774578631894,-207.0,6.509e-05,2]
[418933099,1774578631904,-513.0,6.509e-05,2]
[418933100,1774578631913,-13534.40532504,6.51e-05,2]
[418933132,1774578646340,-3580.95033865,6.51e-05,2]
[418933134,1774578646349,-500.0,6.593e-05,2]
[418933136,1774578646359,-500.0,6.593e-05,2]
[418933138,1774578646369,-500.0,6.593e-05,2]
[418933140,1774578646379,-500.0,6.609e-05,2]
[418933142,1774578646388,-500.0,6.609e-05,2]
[418933144,1774578646397,-375.43914739,6.609e-05,2]
[418933146,1774578646406,-500.0,6.609e-05,2]
[418933148,1774578646415,-500.0,6.609e-05,2]
[418933149,1774578646424,-403.02598655,6.609e-05,2]
[418933150,1774578646433,-386.81779876,6.609e-05,2]
[418933151,1774578646442,-168755.22806862,6.61e-05,2]
[418933152,1774578662086,-2179.1637508,6.61e-05,2]
[418933171,1774579832092,-311.96498844,5.413e-05,2]
[418933172,1774579832101,-500.0,5.513e-05,2]
[418933173,1774579832110,-96.10146127,5.513e-05,2]
[418933174,1774579832122,-403.89853873,5.513e-05,2]
[418933175,1774579832131,-814.60960921,5.827e-05,2]
[418933176,1774579832140,-1561.77325918,6.002e-05,2]
[418933177,1774579832149,-2308.53739973,6.445e-05,2]
[418933178,1774579832159,-1200.0,6.492e-05,2]
[418933179,1774579832168,-491.41132759,6.493e-05,2]
[418933180,1774579832196,-9.03992278,6.493e-05,2]
[418933181,1774579832206,-305.0,6.493e-05,2]
[418933182,1774579832215,-300.0,6.609e-05,2]
[418933183,1774579832225,-743.961,6.61e-05,2]
[418933184,1774579832236,-186.438,6.61e-05,2]
[418933185,1774579832245,-605.527499,6.797e-05,2]
[418933187,1774579832255,-348.9064326,6.9e-05,2]
[418933189,1774579832264,-255.0,6.909e-05,2]
[418933191,1774579832273,-444.0,6.934e-05,2]
[418933193,1774579832282,-555.0,6.943e-05,2]
[418933194,1774579832291,-209.91509484,6.943e-05,2]
[418933195,1774579832300,-377.46932354,6.943e-05,2]
[418933196,1774579832309,-178.48143269,6.943e-05,2]
[418933197,1774579832318,-467.88561636,7e-05,2]
[418933198,1774579832327,-70.47567819,7.04e-05,2]
[418933205,1774579838204,-297.8684839,7.04e-05,2]
[418933206,1774579838213,-600.0,7.047e-05,2]
[418933207,1774579838222,-605.527499,7.083e-05,2]
[418933208,1774579838231,-180.02706243,7.086e-05,2]
[418933209,1774579838240,-450.03215451,7.086e-05,2]
[418933210,1774579838304,-537.6845,7.086e-05,2]
[418933211,1774579838315,-537.6845,7.086e-05,2]
[418933212,1774579838324,-2150.738,7.086e-05,2]
[418933213,1774579838334,-557.5788265,7.141e-05,2]
[418933214,1774579838344,-500.0,7.187e-05,2]
[418933215,1774579838353,-449.43282679,7.196e-05,2]
[418933216,1774579838364,-128.77641629,7.196e-05,2]
[418933217,1774579838373,-226.56373064,7.251e-05,2]
[418933218,1774579838421,-373.03925443,7.251e-05,2]
[418933219,1774579838430,-621.78829552,7.306e-05,2]
[418933220,1774579838439,-644.79446246,7.361e-05,2]
[418933221,1774579838448,-605.527499,7.369e-05,2]
[418933222,1774579838458,-668.65185757,7.416e-05,2]
[418933223,1774579838467,-693.3919763,7.471e-05,2]
[418933224,1774579838476,-473.75150061,7.526e-05,2]
[418933225,1774579838487,-245.29597881,7.526e-05,2]
[418933226,1774579838496,-745.65223616,7.581e-05,2]
[418933227,1774579838505,-628.03157869,7.612e-05,2]
[418933228,1774579838514,-540.17917303,7.634e-05,2]
[418933229,1774579838523,-2230.315306,7.634e-05,2]
[418933230,1774579838532,-255.44544593,7.636e-05,2]
[418933231,1774579838542,-605.527499,7.655e-05,2]
[418933232,1774579838550,-297.41522835,7.752e-05,2]
[418933233,1774579838560,-112.81643035,7.752e-05,2]
[418933234,1774579838573,-607.18356965,7.752e-05,2]
[418933235,1774579838582,-462.42928383,7.81e-05,2]
[418933256,1774579840878,-37.57071617,7.81e-05,2]
[418933257,1774579840887,-154.47784793,7.81e-05,2]
[418933258,1774579840897,-500.0,7.81e-05,2]
[418933259,1774579840906,-500.0,7.81e-05,2]
[418933260,1774579840919,-489.64639863,7.81e-05,2]
[418933261,1774579840930,-166.0,7.81e-05,2]
[418933262,1774579840939,-189.878,7.811e-05,2]
[418933263,1774579840948,-188.342,7.811e-05,2]
[418933264,1774579840957,-1098.15047675,7.811e-05,2]
[418933281,1774579843549,-661.64452325,7.811e-05,2]
[418933283,1774579843560,-736.0,7.811e-05,2]
[418933285,1774579843569,-184.0,7.811e-05,2]
[418933287,1774579843578,-439.0,7.811e-05,2]
[418933289,1774579843588,-584.095,7.811e-05,2]
[418933291,1774579843597,-941.76919297,7.83e-05,7]
[418933292,1774579843606,-500.0,7.873e-05,2]
[418933295,1774579843615,-506.37519551,7.873e-05,2]
[418933297,1774579843625,-500.94067614,7.873e-05,2]
[418933299,1774579843634,-593.82794115,7.873e-05,2]
[418933301,1774579843643,-24474.77639632,7.9e-05,2]
[418933303,1774579843655,-9046.98300026,7.9e-05,2]
[418933305,1774579843665,-5059.0,7.9e-05,2]
[418933307,1774579843677,-5004.66784654,7.9e-05,2]
[418933309,1774579843688,-1826.03086402,7.9e-05,2]
[418933312,1774579843700,-857.52287274,7.9e-05,2]
[418933319,1774579843759,-427.77401337,7.9e-05,2]
[418933322,1774579843770,-21963.37619736,7.9e-05,2]
[418933593,1774579846333,-161.3143201,7.837e-05,2]
[418933595,1774579846342,-3291.8076992,7.9e-05,2]
[418933623,1774579846593,-1165.6730718,7.9e-05,2]
[418933626,1774579846604,-74923.05769049,7.9e-05,2]
[418933683,1774581032351,-500.0,5.924e-05,2]
[418933684,1774581032360,-204.83341133,5.924e-05,2]
[418933686,1774581032369,-505.0,5.924e-05,2]
[418933688,1774581032378,-500.0,6.294e-05,2]
[418933690,1774581032387,-174.21583245,7.573e-05,2]
[418933691,1774581032396,-659.83409006,7.598e-05,2]
[418933693,1774581032454,-500.82288191,7.598e-05,2]
[418933720,1774581041582,-39.34302803,7.598e-05,2]
[418933722,1774581041591,-232.0,7.599e-05,2]
[418933724,1774581041600,-88.93516137,7.599e-05,2]
[418933728,1774581041635,-211.06483863,7.599e-05,2]
[418933729,1774581041644,-300.0,7.599e-05,2]
[418933730,1774581041653,-189.45161098,7.599e-05,2]
[418933731,1774581041689,-110.54838902,7.599e-05,2]
[418933732,1774581041698,-300.0,7.599e-05,2]
[418933733,1774581041708,-221.07182207,7.599e-05,2]
[418933734,1774581041717,-5140.80100472,7.6e-05,2]
[418933735,1774581041743,-1095.2828373,7.6e-05,2]
[418933791,1774581044154,-15386.09844076,7.6e-05,2]
[418933809,1774581046614,-3537.00304111,7.6e-05,2]
[418933827,1774582233412,-214.8296237,6.022e-05,2]
[418933828,1774582233422,-506.0,6.022e-05,2]
[418933829,1774582233431,-2128.17512317,6.07e-05,2]
[418933830,1774582233440,-166.8358909,6.118e-05,2]
[418933831,1774582233450,-4506.53790023,6.17e-05,2]
[418933832,1774582233459,-5194.93198776,6.37e-05,2]
[418933833,1774582233470,-189.949511,6.405e-05,2]